fUSD/lending_fUSD_20260409
["ID","MTS","AMOUNT","RATE_DAILY","PERIOD"]
[420152256,1775730641668,-151.0,0.00013976,2]
[420152257,1775730641678,-248.963988,0.00013976,2]
[420152258,1775730641688,-151.0,0.00013976,2]
[420152260,1775730641697,-172.314368,0.00013976,2]
[420152262,1775730641707,-550.922457,0.00013976,2]
[420152263,1775730641716,-2501.266401,0.00013976,2]
[420152264,1775730641725,-714.675199,0.00013976,2]
[420152265,1775730641735,-795.875483,0.00013976,2]
[420152266,1775730641744,-172.314368,0.00013976,2]
[420152267,1775730641754,-714.675199,0.00013976,2]
[420152268,1775730641763,-795.875483,0.00013976,2]
[420152269,1775730641772,-151.0,0.00013976,2]
[420152270,1775730641782,-172.314368,0.00013976,2]
[420152271,1775730641792,-714.675199,0.00013976,2]
[420152272,1775730641801,-151.0,0.00013976,2]
[420152273,1775730641811,-151.0,0.00013976,2]
[420152274,1775730641820,-795.875483,0.00013976,2]
[420152275,1775730641829,-2429.132347,0.00013976,2]
[420152276,1775730641839,-10015.662551,0.00013976,2]
[420152277,1775730641848,-151.0,0.00013976,2]
[420152278,1775730641859,-172.314368,0.00013976,2]
[420152279,1775730641869,-714.675199,0.00013976,2]
[420152280,1775730641878,-795.875483,0.00013976,2]
[420152281,1775730641888,-10015.662551,0.00013976,2]
[420152282,1775730641898,-2429.132347,0.00013976,2]
[420152283,1775730641908,-382.637335,0.00013976,2]
[420152284,1775730641917,-10015.662551,0.00013976,2]
[420152285,1775730641927,-2429.132347,0.00013976,2]
[420152286,1775730641937,-1684.84007,0.00013976,2]
[420152287,1775730641947,-382.637335,0.00013976,2]
[420152288,1775730641957,-1681.414266,0.00013976,2]
[420152289,1775730641966,-238.792721,0.00013976,2]
[420152290,1775730641976,-10015.662551,0.00013976,2]
[420152291,1775730641985,-2429.132347,0.00013976,2]
[420152292,1775730641995,-1684.84007,0.00013976,2]
[420152293,1775730642004,-382.637335,0.00013976,2]
[420152294,1775730642014,-1681.414266,0.00013976,2]
[420152295,1775730642023,-234.247138,0.00013976,2]
[420152296,1775730642033,-238.792721,0.00013976,2]
[420152297,1775730642042,-151.0,0.00013976,2]
[420152298,1775730642052,-1684.84007,0.00013976,2]
[420152299,1775730642062,-382.637335,0.00013976,2]
[420152300,1775730642072,-1681.414266,0.00013976,2]
[420152301,1775730642081,-234.247138,0.00013976,2]
[420152302,1775730642091,-151.0,0.00013976,2]
[420152303,1775730642101,-151.0,0.00013976,2]
[420152304,1775730642111,-238.792721,0.00013976,2]
[420152305,1775730642120,-234.247138,0.00013976,2]
[420152306,1775730642130,-151.0,0.00013976,2]
[420152307,1775730642139,-1684.84007,0.00013976,2]
[420152308,1775730642149,-238.792721,0.00013976,2]
[420152309,1775730642159,-1681.414266,0.00013976,2]
[420152310,1775730642168,-234.247138,0.00013976,2]
[420152311,1775730642178,-1880.018353,0.00013976,2]
[420152312,1775730642188,-151.0,0.00013976,2]
[420152313,1775730642197,-1880.018353,0.00013976,2]
[420152314,1775730642207,-151.0,0.00013976,2]
[420152315,1775730642217,-151.0,0.00013976,2]
[420152316,1775730642226,-1880.018353,0.00013976,2]
[420152317,1775730642236,-555.069348,0.00013976,2]
[420152318,1775730642246,-1880.018353,0.00013976,2]
[420152319,1775730642255,-205.40894,0.00013976,2]
[420152320,1775730642265,-555.069348,0.00013976,2]
[420152321,1775730642275,-555.069348,0.00013976,2]
[420152322,1775730642285,-395.993179,0.00013976,2]
[420152323,1775730642294,-555.069348,0.00013976,2]
[420152324,1775730642305,-395.993179,0.00013976,2]
[420152325,1775730642314,-641.362299,0.00013976,2]
[420152326,1775730642324,-641.362299,0.00013976,2]
[420152327,1775730642334,-395.993179,0.00013976,2]
[420152328,1775730642343,-214.760309,0.00013976,2]
[420152329,1775730642353,-165.728537,0.00013976,2]
[420152330,1775730642363,-395.993179,0.00013976,2]
[420152331,1775730642372,-641.362299,0.00013976,2]
[420152332,1775730642382,-214.760309,0.00013976,2]
[420152333,1775730642392,-165.728537,0.00013976,2]
[420152334,1775730642401,-641.362299,0.00013976,2]
[420152335,1775730642411,-151.0,0.00013976,2]
[420152336,1775730642421,-214.760309,0.00013976,2]
[420152337,1775730642431,-165.728537,0.00013976,2]
[420152338,1775730642441,-151.0,0.00013976,2]
[420152339,1775730642451,-228.759977,0.00013976,2]
[420152340,1775730642461,-1293.90316,0.00013976,2]
[420152341,1775730642470,-165.728537,0.00013976,2]
[420152342,1775730642480,-228.759977,0.00013976,2]
[420152343,1775730642489,-1293.90316,0.00013976,2]
[420152344,1775730642499,-228.759977,0.00013976,2]
[420152345,1775730642509,-214.760309,0.00013976,2]
[420152346,1775730642518,-1293.90316,0.00013976,2]
[420152347,1775730642528,-1185.412147,0.00013976,2]
[420152348,1775730642539,-341.977028,0.00013976,2]
[420152349,1775730642548,-228.759977,0.00013976,2]
[420152350,1775730642558,-157.888769,0.00013976,2]
[420152351,1775730642568,-1293.90316,0.00013976,2]
[420152352,1775730642577,-1185.412147,0.00013976,2]
[420152353,1775730642587,-557.766277,0.00013976,2]
[420152354,1775730642597,-341.977028,0.00013976,2]
[420152355,1775730642606,-157.888769,0.00013976,2]
[420152356,1775730642616,-1185.412147,0.00013976,2]
[420152357,1775730642625,-557.766277,0.00013976,2]
[420152358,1775730642635,-151.0,0.00013976,2]
[420152359,1775730642645,-341.977028,0.00013976,2]
[420152360,1775730642655,-442.41648,0.00013976,2]
[420152361,1775730642664,-1043.616451,0.00013976,2]
[420152362,1775730642674,-157.888769,0.00013976,2]
[420152363,1775730642683,-151.0,0.00013976,2]
[420152364,1775730642693,-151.0,0.00013976,2]
[420152365,1775730642703,-1185.412147,0.00013976,2]
[420152366,1775730642712,-557.766277,0.00013976,2]
[420152367,1775730642723,-341.977028,0.00013976,2]
[420152368,1775730642733,-442.41648,0.00013976,2]
[420152369,1775730642742,-1043.616451,0.00013976,2]
[420152370,1775730642752,-151.0,0.00013976,2]
[420152371,1775730642762,-557.766277,0.00013976,2]
[420152372,1775730642772,-151.0,0.00013976,2]
[420152373,1775730642783,-1043.616451,0.00013976,2]
[420152374,1775730642792,-442.41648,0.00013976,2]
[420152375,1775730642802,-151.0,0.00013976,2]
[420152376,1775730642811,-151.0,0.00013976,2]
[420152377,1775730642821,-1043.616451,0.00013976,2]
[420152378,1775730642830,-442.41648,0.00013976,2]
[420152379,1775730642840,-151.0,0.00013976,2]
[420152380,1775730642850,-151.0,0.00013976,2]
[420152381,1775730642860,-151.0,0.00013976,2]
[420152382,1775730642870,-9056.299633,0.00013976,2]
[420152383,1775730642880,-151.0,0.00013976,2]
[420152384,1775730642890,-151.0,0.00013976,2]
[420152385,1775730642900,-151.0,0.00013976,2]
[420152386,1775730642910,-157.888769,0.00013976,2]
[420152387,1775730642920,-151.0,0.00013976,2]
[420152388,1775730642929,-9056.299633,0.00013976,2]
[420152389,1775730642939,-151.0,0.00013976,2]
[420152390,1775730642948,-151.0,0.00013976,2]
[420152391,1775730642958,-2507.63670083,0.00014,2]
[420152392,1775730642967,-192.70517365,0.0001401,2]
[420152393,1775730642977,-333.85218546,0.00014106,2]
[420152394,1775730642987,-200.0,0.0001411,2]
[420152395,1775730642996,-2000.0,0.00014116,2]
[420152396,1775730643007,-503.0,0.00014124,2]
[420152397,1775730643017,-4444.1195762,0.0001414,2]
[420152398,1775730643027,-433.0,0.0001424,2]
[420152399,1775730643037,-150.0,0.00014247,2]
[420152400,1775730643048,-500.0,0.0001427,2]
[420152401,1775730643058,-500.0,0.0001427,2]
[420152403,1775730643069,-1000.0,0.0001427,2]
[420152404,1775730643079,-1000.0,0.0001427,2]
[420152406,1775730643090,-192.23,0.00014384,2]
[420152407,1775730643100,-1573.0,0.000144,2]
[420152408,1775730643110,-2507.63670083,0.00014402,2]
[420152409,1775730643120,-1191.11104075,0.00014448,2]
[420152410,1775730643131,-601.3376128,0.00014448,2]
[420152411,1775730643141,-578.20924308,0.00014448,2]
[420152412,1775730643151,-200.0,0.00014448,2]
[420152413,1775730643161,-303.98027082,0.00014448,2]
[420152414,1775730643171,-174.61919141,0.00014448,2]
[420152415,1775730643181,-170.0,0.00014448,2]
[420152416,1775730643191,-170.0,0.00014448,2]
[420152417,1775730643201,-170.0,0.00014448,2]
[420152422,1775730643569,-170.0,0.00014448,2]
[420152423,1775730643602,-170.0,0.00014448,2]
[420152424,1775730643613,-170.0,0.00014448,2]
[420152425,1775730643625,-170.0,0.00014448,2]
[420152426,1775730643635,-170.0,0.00014448,2]
[420152427,1775730643646,-170.0,0.00014448,2]
[420152428,1775730643656,-2351.0,0.00014503,2]
[420152429,1775730643666,-4444.1195762,0.00014508,2]
[420152430,1775730643677,-500.0,0.00014521,2]
[420152431,1775730643687,-500.0,0.00014521,2]
[420152432,1775730643697,-501.60436504,0.00014521,2]
[420152433,1775730643707,-1001.59977952,0.00014521,2]
[420152434,1775730643717,-1573.0,0.00014652,2]
[420152435,1775730643727,-2500.0,0.00014664,2]
[420152436,1775730643737,-500.0,0.0001467,2]
[420152437,1775730643747,-1000.0,0.0001467,2]
[420152438,1775730643756,-1852.42,0.00014676,2]
[420152439,1775730643766,-200.0,0.00014686,2]
[420152440,1775730643777,-162.0,0.00014702,2]
[420152441,1775730643787,-162.0,0.0001472,2]
[420152442,1775730643798,-162.0,0.0001472,2]
[420152443,1775730643808,-2507.63670083,0.00014805,2]
[420152444,1775730643818,-4444.1195762,0.00014875,2]
[420152445,1775730643828,-3000.0,0.00014888,2]
[420152446,1775730643838,-600.0,0.000149,5]
[420152447,1775730643847,-606.54731091,0.0001495,2]
[420152448,1775730643858,-192.70517365,0.00014955,2]
[420152449,1775730643868,-257.14922022,0.00014984,2]
[420152450,1775730643878,-463.4010286,0.00014984,2]
[420152451,1775730643888,-169.12032966,0.00014984,2]
[420152452,1775730643898,-253.1043403,0.00014984,2]
[420152453,1775730643909,-1235.18214925,0.00014996,2]
[420152454,1775730643920,-200.0,0.00014996,2]
[420152455,1775730643931,-181.08010149,0.00014996,2]
[420152456,1775730643941,-732.0,0.00015,2]
[420152457,1775730643951,-1256.0,0.00015,2]
[420152458,1775730643962,-300.0,0.00015,2]
[420152459,1775730643972,-245.0,0.00015031,5]
[420152460,1775730643983,-1572.0,0.0001504,2]
[420152461,1775730643993,-1286.102119,0.00015068,2]
[420152462,1775730644003,-1286.102119,0.00015068,2]
[420152463,1775730644012,-1286.102119,0.00015068,2]
[420152464,1775730644022,-1286.102119,0.00015068,2]
[420152465,1775730644033,-1200.0,0.000151,5]
[420152466,1775730644043,-503.0,0.00015137,3]
[420152467,1775730644053,-1100.0,0.00015162,2]
[420152468,1775730644063,-1900.0,0.000152,5]
[420152469,1775730644073,-2507.63670083,0.00015207,2]
[420152470,1775730644083,-518.59345507,0.00015212,2]
[420152471,1775730644093,-4444.1195762,0.00015243,2]
[420152472,1775730644103,-294.62,0.00015256,2]
[420152473,1775730644113,-1635.34,0.00015285,2]
[420152474,1775730644123,-162.0,0.00015287,2]
[420152475,1775730644132,-306.0,0.000153,2]
[420152476,1775730644143,-2500.0,0.000153,5]
[420152477,1775730644152,-1000.0,0.000153,2]
[420152478,1775730644161,-313.0,0.000153,2]
[420152479,1775730644171,-3025.584,0.0001531,2]
[420152480,1775730644181,-150.876,0.0001531,2]
[420152481,1775730644191,-1039.80081074,0.0001532,2]
[420152482,1775730644200,-380.99228413,0.0001532,2]
[420152483,1775730644210,-1573.0,0.0001536,2]
[420152484,1775730644220,-1200.43009009,0.00015396,2]
[420152485,1775730644229,-3200.0,0.000154,5]
[420152486,1775730644240,-2000.0,0.00015405,2]
[420152488,1775730644250,-500.0,0.00015405,2]
[420152490,1775730644260,-12502.8611885,0.00015465,2]
[420152492,1775730644270,-600.0,0.000155,5]
[420152494,1775730644281,-168.0,0.00015508,2]
[420152496,1775730644291,-736.0,0.00015522,2]
[420152497,1775730644301,-500.0,0.0001553,2]
[420152498,1775730644311,-1280.88388878,0.00015544,2]
[420152499,1775730644321,-200.0,0.00015544,2]
[420152500,1775730644331,-187.78006525,0.00015544,2]
[420152501,1775730644340,-2000.0,0.0001555,2]
[420152502,1775730644351,-2000.0,0.0001555,2]
[420152503,1775730644361,-2000.0,0.0001555,2]
[420152504,1775730644371,-294.62,0.00015551,2]
[420152505,1775730644381,-171.11,0.00015562,2]
[420152506,1775730644393,-155.73,0.00015563,2]
[420152507,1775730644403,-500.0,0.0001557,2]
[420152508,1775730644413,-1000.0,0.0001557,2]
[420152509,1775730644423,-500.0,0.00015583,2]
[420152510,1775730644432,-200.0,0.00015583,2]
[420152511,1775730644442,-500.0,0.00015584,2]
[420152512,1775730644452,-500.0,0.00015584,2]
[420152513,1775730644462,-200.0,0.00015584,2]
[420152514,1775730644472,-168.0,0.00015589,2]
[420152515,1775730644482,-5000.0,0.00015592,2]
[420152516,1775730644492,-168.0,0.00015594,2]
[420152517,1775730644502,-600.0,0.000156,5]
[420152518,1775730644511,-513.05326966,0.00015609,2]
[420152519,1775730644521,-508.5252397,0.00015609,2]
[420152520,1775730644531,-465.82156854,0.00015609,2]
[420152521,1775730644540,-500.0,0.00015609,2]
[420152522,1775730644550,-4444.1195762,0.0001561,2]
[420152523,1775730644559,-202.81769312,0.0001561,2]
[420152524,1775730644569,-196.70783503,0.0001561,2]
[420152525,1775730644579,-2507.63670083,0.0001561,2]
[420152526,1775730644588,-653.11021539,0.0001561,2]
[420152527,1775730644599,-1500.0,0.00015611,2]
[420152528,1775730644608,-1500.0,0.00015611,2]
[420152529,1775730644618,-1500.0,0.00015611,2]
[420152530,1775730644628,-1500.0,0.00015611,2]
[420152531,1775730644638,-1590.054416,0.00015611,2]
[420152532,1775730644648,-168.0,0.00015627,2]
[420152533,1775730644658,-700.0,0.0001563,2]
[420152534,1775730644668,-250.0,0.00015638,2]
[420152535,1775730644677,-9634.6660827,0.00015663,2]
[420152536,1775730644686,-500.0,0.0001567,2]
[420152537,1775730644696,-500.0,0.0001567,2]
[420152538,1775730644707,-1000.0,0.0001567,2]
[420152539,1775730644716,-1000.0,0.0001567,2]
[420152540,1775730644726,-168.0,0.00015673,2]
[420152541,1775730644736,-1573.0,0.0001568,2]
[420152542,1775730644746,-162.0,0.0001568,2]
[420152543,1775730644756,-25000.0,0.00015684,3]
[420152544,1775730644766,-168.0,0.00015686,2]
[420152545,1775730644775,-25000.0,0.00015692,3]
[420152546,1775730644785,-151.0,0.00015696,2]
[420152547,1775730644795,-1764.7092116,0.000157,2]
[420152548,1775730644804,-1764.7092116,0.000157,2]
[420152549,1775730644814,-600.0,0.000157,5]
[420152550,1775730644824,-881.75918925,0.000157,2]
[420152551,1775730644833,-881.75918925,0.000157,2]
[420152552,1775730644843,-1802.50135147,0.000157,2]
[420152553,1775730644852,-333.85218546,0.000157,2]
[420152554,1775730644861,-333.85218546,0.000157,2]
[420152555,1775730644871,-151.0,0.00015701,2]
[420152556,1775730644880,-151.0,0.00015701,2]
[420152557,1775730644890,-228.759977,0.00015701,2]
[420152558,1775730644900,-1293.90316,0.00015701,2]
[420152559,1775730644910,-228.759977,0.00015701,2]
[420152560,1775730644920,-1293.90316,0.00015701,2]
[420152561,1775730644929,-228.759977,0.00015701,2]
[420152562,1775730644939,-1293.90316,0.00015701,2]
[420152563,1775730644948,-1185.412147,0.00015701,2]
[420152564,1775730644958,-341.977028,0.00015701,2]
[420152565,1775730644967,-228.759977,0.00015701,2]
[420152566,1775730644977,-157.888769,0.00015701,2]
[420152567,1775730644986,-1293.90316,0.00015701,2]
[420152568,1775730644997,-1185.412147,0.00015701,2]
[420152569,1775730645007,-557.766277,0.00015701,2]
[420152570,1775730645017,-341.977028,0.00015701,2]
[420152571,1775730645026,-157.888769,0.00015701,2]
[420152572,1775730645036,-1185.412147,0.00015701,2]
[420152573,1775730645046,-557.766277,0.00015701,2]
[420152574,1775730645055,-151.0,0.00015701,2]
[420152575,1775730645066,-341.977028,0.00015701,2]
[420152576,1775730645075,-442.41648,0.00015701,2]
[420152577,1775730645085,-1043.616451,0.00015701,2]
[420152578,1775730645094,-151.0,0.00015701,2]
[420152579,1775730645104,-151.0,0.00015701,2]
[420152580,1775730645114,-1185.412147,0.00015701,2]
[420152581,1775730645123,-557.766277,0.00015701,2]
[420152582,1775730645133,-341.977028,0.00015701,2]
[420152583,1775730645142,-442.41648,0.00015701,2]
[420152584,1775730645152,-1043.616451,0.00015701,2]
[420152585,1775730645161,-151.0,0.00015701,2]
[420152586,1775730645172,-557.766277,0.00015701,2]
[420152587,1775730645182,-151.0,0.00015701,2]
[420152588,1775730645192,-1043.616451,0.00015701,2]
[420152589,1775730645201,-442.41648,0.00015701,2]
[420152590,1775730645211,-151.0,0.00015701,2]
[420152591,1775730645220,-151.0,0.00015701,2]
[420152592,1775730645230,-1043.616451,0.00015701,2]
[420152593,1775730645239,-442.41648,0.00015701,2]
[420152594,1775730645249,-151.0,0.00015701,2]
[420152595,1775730645258,-263.095936,0.00015701,2]
[420152596,1775730645268,-151.0,0.00015701,2]
[420152597,1775730645277,-157.888769,0.00015701,2]
[420152598,1775730645286,-9056.299633,0.00015701,2]
[420152599,1775730645296,-151.0,0.00015701,2]
[420152600,1775730645306,-151.0,0.00015701,2]
[420152601,1775730645315,-151.0,0.00015701,2]
[420152602,1775730645325,-157.888769,0.00015701,2]
[420152603,1775730645335,-151.0,0.00015701,2]
[420152604,1775730645345,-9056.299633,0.00015701,2]
[420152605,1775730645355,-151.0,0.00015701,2]
[420152606,1775730645364,-25000.0,0.00015701,3]
[420152607,1775730645375,-151.0,0.00015707,2]
[420152608,1775730645385,-666.0,0.00015708,2]
[420152609,1775730645394,-315.0,0.00015709,5]
[420152610,1775730645404,-750.42,0.00015709,2]
[420152611,1775730645414,-750.42,0.00015709,2]
[420152612,1775730645423,-750.42,0.00015709,2]
[420152613,1775730645433,-750.42,0.00015709,2]
[420152614,1775730645443,-750.42,0.00015709,2]
[420152615,1775730645452,-750.42,0.00015709,2]
[420152616,1775730645462,-750.42,0.00015709,2]
[420152617,1775730645472,-750.42,0.00015709,2]
[420152618,1775730645481,-750.42,0.00015709,2]
[420152619,1775730645490,-750.42,0.00015709,2]
[420152620,1775730645500,-750.42,0.00015709,2]
[420152621,1775730645510,-750.42,0.00015709,2]
[420152622,1775730645519,-750.42,0.00015709,2]
[420152623,1775730645529,-750.42,0.00015709,2]
[420152624,1775730645539,-750.42,0.00015709,2]
[420152625,1775730645548,-750.42,0.00015709,2]
[420152626,1775730645558,-750.42,0.00015709,2]
[420152627,1775730645567,-750.42,0.00015709,2]
[420152628,1775730645577,-750.42,0.00015709,2]
[420152629,1775730645587,-363594.8062786,0.00015709,2]
[420152630,1775730645596,-1081.5620595,0.00015709,2]
[420152631,1775730645606,-151.0,0.00015709,2]
[420152632,1775730645615,-151.0,0.00015709,2]
[420152633,1775730645624,-151.0,0.00015709,2]
[420152634,1775730645634,-151.0,0.00015709,2]
[420152635,1775730645643,-151.0,0.00015709,2]
[420152636,1775730645653,-151.0,0.00015709,2]
[420152637,1775730645662,-151.0,0.00015709,2]
[420152638,1775730645671,-170.593914,0.00015709,2]
[420152639,1775730645680,-170.593914,0.00015709,2]
[420152640,1775730645690,-170.593914,0.00015709,2]
[420152641,1775730645700,-170.593914,0.00015709,2]
[420152642,1775730645709,-151.0,0.00015709,2]
[420152643,1775730645718,-151.0,0.00015709,2]
[420152644,1775730645728,-151.0,0.00015709,2]
[420152645,1775730645737,-151.0,0.00015709,2]
[420152646,1775730645747,-151.0,0.00015709,2]
[420152647,1775730645756,-459.342263,0.00015709,2]
[420152648,1775730645766,-151.0,0.00015709,2]
[420152649,1775730645775,-459.342263,0.00015709,2]
[420152650,1775730645785,-151.0,0.00015709,2]
[420152651,1775730645794,-459.342263,0.00015709,2]
[420152652,1775730645804,-151.0,0.00015709,2]
[420152653,1775730645813,-459.342263,0.00015709,2]
[420152654,1775730645822,-151.0,0.00015709,2]
[420152655,1775730645832,-209.245026,0.00015709,2]
[420152656,1775730645841,-151.0,0.00015709,2]
[420152657,1775730645850,-151.0,0.00015709,2]
[420152658,1775730645859,-151.0,0.00015709,2]
[420152659,1775730645869,-151.0,0.00015709,2]
[420152660,1775730645879,-151.0,0.00015709,2]
[420152661,1775730645888,-151.0,0.00015709,2]
[420152662,1775730645898,-151.0,0.00015709,2]
[420152663,1775730645908,-151.0,0.00015709,2]
[420152664,1775730645917,-151.0,0.00015709,2]
[420152665,1775730645927,-171.867948,0.00015709,2]
[420152666,1775730645937,-151.0,0.00015709,2]
[420152667,1775730645946,-151.0,0.00015709,2]
[420152668,1775730645956,-171.867948,0.00015709,2]
[420152669,1775730645965,-151.0,0.00015709,2]
[420152670,1775730645975,-171.867948,0.00015709,2]
[420152671,1775730645984,-171.867948,0.00015709,2]
[420152672,1775730645993,-151.0,0.00015709,2]
[420152673,1775730646002,-151.0,0.00015709,2]
[420152674,1775730646012,-151.0,0.00015709,2]
[420152675,1775730646021,-185.827137,0.00015709,2]
[420152676,1775730646031,-151.0,0.00015709,2]
[420152677,1775730646041,-185.827137,0.00015709,2]
[420152678,1775730646050,-185.827137,0.00015709,2]
[420152679,1775730646060,-185.827137,0.00015709,2]
[420152680,1775730646070,-152.3556,0.00015709,2]
[420152681,1775730646080,-151.0,0.00015709,2]
[420152682,1775730646089,-151.0,0.00015709,2]
[420152683,1775730646098,-151.0,0.00015709,2]
[420152684,1775730646108,-160.045191,0.00015709,2]
[420152685,1775730646118,-151.0,0.00015709,2]
[420152686,1775730646128,-248.45376,0.00015709,2]
[420152687,1775730646137,-151.0,0.00015709,2]
[420152688,1775730646147,-151.0,0.00015709,2]
[420152689,1775730646156,-206.258725,0.00015709,2]
[420152692,1775730646166,-151.0,0.00015709,2]
[420152694,1775730646175,-151.0,0.00015709,2]
[420152696,1775730646184,-151.0,0.00015709,2]
[420152698,1775730646193,-159.385593,0.00015709,2]
[420152700,1775730646203,-151.0,0.00015709,2]
[420152701,1775730646213,-190.427889,0.00015709,2]
[420152702,1775730646222,-190.427889,0.00015709,2]
[420152703,1775730646232,-190.427889,0.00015709,2]
[420152704,1775730646242,-190.427889,0.00015709,2]
[420152705,1775730646251,-151.0,0.00015709,2]
[420152706,1775730646260,-151.0,0.00015709,2]
[420152707,1775730646270,-151.0,0.00015709,2]
[420152708,1775730646280,-151.0,0.00015709,2]
[420152709,1775730646290,-151.0,0.00015709,2]
[420152710,1775730646300,-151.0,0.00015709,2]
[420152711,1775730646310,-151.0,0.00015709,2]
[420152712,1775730646319,-151.0,0.00015709,2]
[420152713,1775730646329,-151.0,0.00015709,2]
[420152714,1775730646339,-254.239938,0.00015709,2]
[420152715,1775730646349,-302.873399,0.00015709,2]
[420152716,1775730646359,-254.239938,0.00015709,2]
[420152717,1775730646368,-302.873399,0.00015709,2]
[420152718,1775730646378,-254.239938,0.00015709,2]
[420152719,1775730646387,-302.873399,0.00015709,2]
[420152720,1775730646397,-254.239938,0.00015709,2]
[420152721,1775730646407,-302.873399,0.00015709,2]
[420152722,1775730646416,-156.743888,0.00015709,2]
[420152723,1775730646426,-666.0,0.00015709,2]
[420152724,1775730646435,-151.0,0.00015709,2]
[420152725,1775730646445,-151.0,0.00015709,2]
[420152726,1775730646454,-151.0,0.00015709,2]
[420152727,1775730646463,-190.295788,0.00015709,2]
[420152728,1775730646473,-151.0,0.00015709,2]
[420152729,1775730646482,-151.0,0.00015709,2]
[420152730,1775730646492,-151.0,0.00015709,2]
[420152731,1775730646501,-151.0,0.00015709,2]
[420152732,1775730646512,-151.0,0.00015709,2]
[420152733,1775730646521,-288.494377,0.00015709,2]
[420152734,1775730646531,-151.0,0.00015709,2]
[420152735,1775730646541,-151.658811,0.00015709,2]
[420152736,1775730646550,-151.0,0.00015709,2]
[420152737,1775730646560,-151.0,0.00015709,2]
[420152738,1775730646569,-151.0,0.00015709,2]
[420152739,1775730646579,-151.0,0.00015709,2]
[420152740,1775730646589,-231.386369,0.00015709,2]
[420152741,1775730646598,-151.0,0.00015709,2]
[420152742,1775730646607,-231.386369,0.00015709,2]
[420152743,1775730646617,-231.386369,0.00015709,2]
[420152744,1775730646627,-151.0,0.00015709,2]
[420152745,1775730646636,-151.0,0.00015709,2]
[420152746,1775730646646,-231.386369,0.00015709,2]
[420152747,1775730646655,-151.0,0.00015709,2]
[420152748,1775730646664,-151.0,0.00015709,2]
[420152749,1775730646674,-151.0,0.00015709,2]
[420152750,1775730646683,-151.0,0.00015709,2]
[420152751,1775730646693,-151.0,0.00015709,2]
[420152752,1775730646702,-151.0,0.00015709,2]
[420152753,1775730646713,-151.0,0.00015709,2]
[420152754,1775730646722,-151.0,0.00015709,2]
[420152755,1775730646731,-151.0,0.00015709,2]
[420152756,1775730646740,-151.0,0.00015709,2]
[420152757,1775730646750,-151.0,0.00015709,2]
[420152758,1775730646759,-154.724888,0.00015709,2]
[420152759,1775730646768,-151.0,0.00015709,2]
[420152760,1775730646778,-151.0,0.00015709,2]
[420152761,1775730646787,-151.0,0.00015709,2]
[420152762,1775730646797,-151.0,0.00015709,2]
[420152763,1775730646806,-151.0,0.00015709,2]
[420152764,1775730646816,-151.0,0.00015709,2]
[420152765,1775730646826,-151.0,0.00015709,2]
[420152766,1775730646835,-151.0,0.00015709,2]
[420152767,1775730646844,-181.648025,0.00015709,2]
[420152768,1775730646854,-500.0,0.00015709,2]
[420152769,1775730646863,-500.0,0.00015709,2]
[420152770,1775730646873,-500.0,0.00015709,2]
[420152771,1775730646882,-500.0,0.00015709,2]
[420152772,1775730646891,-500.0,0.00015709,2]
[420152773,1775730646900,-500.0,0.00015709,2]
[420152774,1775730646909,-500.0,0.00015709,2]